fUSD/lending_fUSD_20240814
["ID","MTS","AMOUNT","RATE_DAILY","PERIOD"]
[334851939,1723609574456,500.0,0.00013698,2]
[334851940,1723609574730,500.0,0.00013972,2]
[334851941,1723609574889,500.0,0.00013698,2]
[334851942,1723609575170,500.0,0.00013972,2]
[334851943,1723609576017,910.69,0.00013698,2]
[334851944,1723609576096,1096.81148529,0.00013972,2]
[334851945,1723609576287,910.69,0.00013972,2]
[334851947,1723609579609,539.62,0.00013698,2]
[334851948,1723609579864,539.62,0.00013972,2]
[334851949,1723609580591,3224.36,0.00013698,2]
[334851950,1723609580874,3224.36,0.00013972,2]
[334851951,1723609581532,1851.14,0.00013698,2]
[334851952,1723609581659,1851.14,0.00013972,2]
[334851954,1723609583132,860.94,0.00013698,2]
[334851955,1723609583382,860.94,0.00013972,2]
[334851956,1723609585553,11477.37,0.00013698,2]
[334851957,1723609585587,500.0,0.00013698,2]
[334851958,1723609585626,500.0,0.00013698,2]
[334851959,1723609585861,500.0,0.00013698,2]
[334851960,1723609585895,500.0,0.00013972,2]
[334851961,1723609585943,500.0,0.00013698,2]
[334851962,1723609585979,500.0,0.00013972,2]
[334851963,1723609586016,11477.37,0.00013972,2]
[334851964,1723609586057,694.40553642,0.00013972,2]
[334851965,1723609586105,500.0,0.00013972,2]
[334851966,1723609586143,500.0,0.00013972,2]
[334851967,1723609589004,500.0,0.00013698,2]
[334851968,1723609589189,500.0,0.00013698,2]
[334851969,1723609589296,500.0,0.00013972,2]
[334851970,1723609589471,500.0,0.00013972,2]
[334851971,1723609589593,1281.62,0.00013698,2]
[334851972,1723609589717,2158.11,0.00013698,2]
[334851973,1723609589769,3669.07,0.00013698,2]
[334851974,1723609589844,1281.62,0.00013972,2]
[334851975,1723609590070,3669.07,0.00013972,2]
[334851976,1723609590331,2158.11,0.00013972,2]
[334851977,1723609590972,506.42,0.00013698,2]
[334851978,1723609591251,506.42,0.00013972,2]
[334851979,1723609591365,500.0,0.00013698,2]
[334851980,1723609592409,500.0,0.00013972,2]
[334851981,1723609592583,564.27,0.00013698,2]
[334851982,1723609593781,940.92,0.00013698,2]
[334851983,1723609594041,500.0,0.00013698,2]
[334851984,1723609594073,940.92,0.00013972,2]
[334851985,1723609594302,500.0,0.00013972,2]
[334851986,1723609594648,1472.9,0.00013698,2]
[334851987,1723609594715,627.23,0.00013698,2]
[334851988,1723609594917,1472.9,0.00013972,2]
[334851989,1723609594980,627.23,0.00013972,2]
[334851991,1723609596278,500.0,0.00013698,2]
[334851992,1723609596867,500.0,0.00013972,2]
[334851993,1723609598649,3307.81,0.00013698,2]
[334851994,1723609598903,3307.81,0.00013972,2]
[334851995,1723609599962,500.0,0.00013698,2]
[334851996,1723609600274,500.0,0.00013972,2]
[334851998,1723609601144,9410.13,0.00013698,2]
[334851999,1723609601190,3063.71,0.00013698,2]
[334852000,1723609601389,572.1,0.00013698,2]
[334852001,1723609601427,9410.13,0.00013972,2]
[334852002,1723609601528,3063.71,0.00013972,2]
[334852003,1723609601661,572.1,0.00013972,2]
[334852004,1723609603519,542.26,0.00013698,2]
[334852005,1723609603574,542.26,0.00013972,2]
[334852006,1723609603612,500.0,0.00013698,2]
[334852007,1723609603858,500.0,0.00013972,2]
[334852008,1723609604945,3046.11,0.00013698,2]
[334852009,1723609605099,500.0,0.00013698,2]
[334852010,1723609605216,3046.11,0.00013972,2]
[334852011,1723609605378,500.0,0.00013972,2]
[334852012,1723609605931,500.0,0.00013698,2]
[334852013,1723609606177,500.0,0.00013972,2]
[334852014,1723609606207,930.82944613,0.00013972,2]
[334852015,1723609606820,500.0,0.00013698,2]
[334852016,1723609607080,500.0,0.00013972,2]
[334852017,1723609607454,703.44,0.00013698,2]
[334852018,1723609607713,703.44,0.00013972,2]
[334852020,1723609610626,974.97,0.00013698,2]
[334852021,1723609610764,1526.23,0.00013698,2]
[334852022,1723609610882,974.97,0.00013972,2]
[334852023,1723609610935,625.03,0.00013698,2]
[334852024,1723609611043,1526.23,0.00013972,2]
[334852025,1723609611211,625.03,0.00013972,2]
[334852026,1723609612051,661.53,0.00013698,2]
[334852027,1723609612350,661.53,0.00013972,2]
[334852028,1723609612978,1572.44,0.00013698,2]
[334852029,1723609613235,1572.44,0.00013972,2]
[334852030,1723609614568,1259.91,0.00013698,2]
[334852031,1723609614833,1259.91,0.00013972,2]
[334852032,1723609615604,1476.67,0.00013698,2]
[334852033,1723609615780,500.0,0.00013698,2]
[334852034,1723609615858,1476.67,0.00013972,2]
[334852035,1723609615954,999.55,0.00013698,2]
[334852036,1723609616030,500.0,0.00013972,2]
[334852037,1723609616227,999.55,0.00013972,2]
[334852038,1723609619508,809.75,0.00013698,2]
[334852039,1723609619782,809.75,0.00013972,2]
[334852040,1723609620461,500.0,0.00013698,2]
[334852041,1723609620769,500.0,0.00013972,2]
[334852043,1723609623401,500.0,0.00013698,2]
[334852044,1723609623659,500.0,0.00013972,2]
[334852045,1723609625602,2268.61,0.00013698,2]
[334852046,1723609625847,2268.61,0.00013972,2]
[334852047,1723609626242,937.43,0.00013698,2]
[334852048,1723609626560,937.43,0.00013972,2]
[334852049,1723609627102,1125.39,0.00013698,2]
[334852050,1723609627355,1125.39,0.00013972,2]
[334852051,1723609628454,2629.96,0.00013698,2]
[334852052,1723609628731,2629.96,0.00013972,2]
[334852053,1723609629562,1310.49655341,0.00013972,2]
[334852054,1723609630007,779.17,0.00013698,2]
[334852055,1723609630331,779.17,0.00013972,2]
[334852056,1723609630795,1486.32,0.00013698,2]
[334852057,1723609631048,1486.32,0.00013972,2]
[334852058,1723609631077,731.78,0.00013698,2]
[334852059,1723609631662,731.78,0.00013972,2]
[334852061,1723609634998,5507.41,0.00013698,2]
[334852062,1723609635134,5507.41,0.00013972,2]
[334852063,1723609635214,500.0,0.00013698,2]
[334852064,1723609635448,500.0,0.00013972,2]
[334852065,1723609636487,1470.1,0.00013698,2]
[334852066,1723609636629,1470.1,0.00013972,2]
[334852067,1723609637132,3569.11,0.00013698,2]
[334852068,1723609637392,3569.11,0.00013972,2]
[334852069,1723609637987,896.11,0.00013698,2]
[334852070,1723609638257,896.11,0.00013972,2]
[334852071,1723609638287,681.82,0.00013698,2]
[334852072,1723609638560,681.82,0.00013972,2]
[334852073,1723609640308,2696.37767815,0.00013987,2]
[334852074,1723609642283,1454.11,0.00013698,2]
[334852075,1723609642504,1104.05,0.00013698,2]
[334852076,1723609642539,1454.11,0.00013972,2]
[334852077,1723609642834,1104.05,0.00013972,2]
[334852078,1723609643024,2169.37,0.00013698,2]
[334852079,1723609643349,2169.37,0.00013972,2]
[334852080,1723609643821,760.45102022,0.00013972,2]
[334852081,1723609644305,500.0,0.00013698,2]
[334852082,1723609644576,500.0,0.00013972,2]
[334852083,1723609645938,10922.42,0.00013698,2]
[334852084,1723609646042,10922.42,0.00013972,2]
[334852085,1723609646639,500.0,0.00013698,2]
[334852086,1723609646910,500.0,0.00013972,2]
[334852087,1723609646947,500.0,0.00013698,2]
[334852088,1723609647188,500.0,0.00013972,2]
[334852089,1723609647606,1205.29,0.00013698,2]
[334852090,1723609647876,1205.29,0.00013972,2]
[334852092,1723609649731,500.0,0.00013698,2]
[334852093,1723609650037,500.0,0.00013972,2]
[334852094,1723609651075,1282.27,0.00013698,2]
[334852095,1723609651356,1282.27,0.00013972,2]
[334852096,1723609651594,500.0,0.00013698,2]
[334852097,1723609651858,500.0,0.00013972,2]
[334852098,1723609651996,6536.97,0.00013698,2]
[334852099,1723609652275,6536.97,0.00013972,2]
[334852100,1723609652597,500.0,0.00013698,2]
[334852101,1723609652801,500.0,0.00013972,2]
[334852102,1723609654452,500.0,0.00013698,2]
[334852103,1723609654864,9772.12,0.00013698,2]
[334852104,1723609655132,9772.12,0.00013972,2]
[334852105,1723609655172,2669.17,0.00013698,2]
[334852106,1723609655441,2669.17,0.00013972,2]
[334852107,1723609656461,500.0,0.00013972,2]
[334852108,1723609657268,1328.52,0.00013698,2]
[334852109,1723609657469,500.0,0.00013698,2]
[334852110,1723609657501,500.0,0.00013698,2]
[334852111,1723609657539,1328.52,0.00013972,2]
[334852112,1723609657769,500.0,0.00013972,2]
[334852113,1723609657803,500.0,0.00013972,2]
[334852114,1723609658532,3638.87,0.00013698,2]
[334852115,1723609658809,3638.87,0.00013972,2]
[334852116,1723609659621,500.0,0.00013698,2]
[334852117,1723609659698,1643.29,0.00013698,2]
[334852118,1723609659862,583.59745648,0.00013698,2]
[334852119,1723609659977,1643.29,0.00013972,2]
[334852120,1723609661666,1223.89523949,0.00013972,2]
[334852121,1723609663087,500.0,0.00013698,2]
[334852122,1723609663195,500.0,0.00013698,2]
[334852123,1723609663303,500.0,0.00013972,2]
[334852124,1723609663360,500.0,0.00013972,2]
[334852125,1723609663605,756.9,0.00013698,2]
[334852126,1723609663879,756.9,0.00013972,2]
[334852127,1723609663952,500.0,0.00013972,2]
[334852128,1723609665496,510.29,0.00013698,2]
[334852129,1723609665775,510.29,0.00013972,2]
[334852130,1723609665897,500.0,0.00013698,2]
[334852131,1723609666181,500.0,0.00013972,2]
[334852132,1723609667293,1412.99,0.00013698,2]
[334852133,1723609667610,1412.99,0.00013972,2]
[334852135,1723609668406,672.06,0.00013698,2]
[334852136,1723609668789,672.06,0.00013972,2]
[334852137,1723609669382,500.0,0.00013698,2]
[334852138,1723609669723,500.0,0.00013972,2]
[334852139,1723609669795,960.18,0.00013698,2]
[334852140,1723609670004,573.39,0.00013698,2]
[334852141,1723609670161,1317.22,0.00013698,2]
[334852142,1723609670289,573.39,0.00013972,2]
[334852143,1723609670529,1317.22,0.00013972,2]
[334852144,1723609671434,500.0,0.00013698,2]
[334852145,1723609671497,500.0,0.00013972,2]
[334852146,1723609671915,2594.57,0.00013698,2]
[334852147,1723609672170,2594.57,0.00013972,2]
[334852148,1723609672541,1170.34,0.00013698,2]
[334852149,1723609672789,1170.34,0.00013972,2]
[334852150,1723609673324,960.18,0.00013972,2]
[334852151,1723609673579,2279.45,0.00013698,2]
[334852152,1723609673841,2279.45,0.00013972,2]
[334852153,1723609674901,500.0,0.00013698,2]
[334852154,1723609675150,500.0,0.00013972,2]
[334852155,1723609675399,1430.72,0.00013698,2]
[334852156,1723609675679,1430.72,0.00013972,2]
[334852157,1723609676576,699.32,0.00013698,2]
[334852158,1723609676635,400.0,0.00013698,2]
[334852159,1723609677315,699.32,0.00013972,2]
[334852160,1723609678198,400.0,0.00013972,2]
[334852161,1723609678906,500.0,0.00013698,2]
[334852162,1723609679057,337.01010388,0.00013698,2]
[334852163,1723609679173,500.0,0.00013972,2]
[334852164,1723609679959,500.0,0.00013698,2]
[334852165,1723609680270,500.0,0.00013972,2]
[334852166,1723609681835,500.0,0.00013698,2]
[334852167,1723609682111,500.0,0.00013972,2]
[334852168,1723609682202,2593.85,0.00013698,2]
[334852169,1723609682461,2593.85,0.00013972,2]
[334852170,1723609682908,709.11,0.00013698,2]
[334852171,1723609683209,709.11,0.00013972,2]
[334852172,1723609683736,584.01,0.00013698,2]
[334852173,1723609684025,584.01,0.00013972,2]
[334852174,1723609684646,973.59028936,0.00013972,2]
[334852175,1723609684746,2203.65,0.00013698,2]
[334852176,1723609684948,500.0,0.00013698,2]
[334852177,1723609684976,693.27901704,0.00013972,2]
[334852178,1723609685037,2203.65,0.00013972,2]
[334852179,1723609685200,500.0,0.00013972,2]
[334852180,1723609686261,1289.07,0.00013698,2]
[334852181,1723609686474,4744.17,0.00013698,2]
[334852182,1723609686518,1289.07,0.00013972,2]
[334852184,1723609686751,4744.17,0.00013972,2]
[334852185,1723609687174,571687.64179567,0.00011,2]
[334852186,1723609687947,1545.87,0.00013698,2]
[334852187,1723609687992,1545.87,0.00013972,2]
[334852190,1723609690003,721.29,0.00013698,2]
[334852191,1723609690257,721.29,0.00013972,2]
[334852192,1723609691366,693.69,0.00013698,2]
[334852193,1723609691618,693.69,0.00013972,2]
[334852194,1723609693346,500.0,0.00013698,2]
[334852195,1723609693629,500.0,0.00013972,2]
[334852196,1723609693767,500.0,0.00013698,2]
[334852197,1723609694039,500.0,0.00013972,2]
[334852198,1723609694356,702.63,0.00013698,2]
[334852199,1723609694712,702.63,0.00013972,2]
[334852200,1723609697409,500.0,0.00013698,2]
[334852201,1723609697676,1337.5,0.00013698,2]
[334852202,1723609698063,500.0,0.00013698,2]
[334852203,1723609698570,500.0,0.00013972,2]
[334852204,1723609698629,500.0,0.00013972,2]
[334852205,1723609698744,500.0,0.00013698,2]
[334852206,1723609698795,500.0,0.00013972,2]
[334852207,1723609698830,1337.5,0.00013972,2]
[334852208,1723609699739,2072.36,0.00013698,2]
[334852209,1723609700005,2072.36,0.00013972,2]
[334852210,1723609702008,1595.04,0.00013698,2]
[334852211,1723609702246,1595.04,0.00013972,2]
[334852212,1723609702430,632.26,0.00013698,2]
[334852213,1723609702576,500.0,0.00013698,2]
[334852214,1723609702886,500.0,0.00013972,2]
[334852215,1723609702925,500.0,0.00013698,2]
[334852216,1723609703020,632.26,0.00013972,2]
[334852217,1723609703179,500.0,0.00013698,2]
[334852218,1723609703222,500.0,0.00013972,2]
[334852219,1723609703464,500.0,0.00013698,2]
[334852220,1723609703500,934.24,0.00013698,2]
[334852221,1723609703627,1847.69,0.00013698,2]
[334852222,1723609703663,500.0,0.00013698,2]
[334852223,1723609703702,934.24,0.00013972,2]
[334852224,1723609703771,500.0,0.00013698,2]
[334852225,1723609703955,500.0,0.00013698,2]
[334852226,1723609703984,1847.69,0.00013972,2]
[334852227,1723609704044,500.0,0.00013972,2]
[334852228,1723609704214,500.0,0.00013799,2]
[334852229,1723609704288,872.38896969,0.00013698,2]
[334852230,1723609704471,500.0,0.00013899,2]
[334852231,1723609704756,500.0,0.00013971,2]
[334852233,1723609705015,500.0,0.00013971,2]
[334852234,1723609705160,606.48,0.00013698,2]
[334852235,1723609705228,921.25,0.00013698,2]
[334852236,1723609705337,500.0,0.00013971,2]
[334852237,1723609705490,606.48,0.00013972,2]
[334852238,1723609705539,921.25,0.00013972,2]
[334852239,1723609706202,1284.98,0.00013698,2]
[334852240,1723609706473,1284.98,0.00013972,2]
[334852241,1723609707430,500.0,0.00013698,2]
[334852242,1723609707711,500.0,0.00013972,2]
[334852243,1723609708038,242.95009532,0.00013698,2]
[334852244,1723609709563,500.0,0.00013698,2]
[334852245,1723609709812,500.0,0.00013972,2]
[334852246,1723609710332,500.0,0.00013698,2]
[334852247,1723609710488,500.0,0.00013972,2]
[334852248,1723609711286,882.68,0.0001379,2]
[334852249,1723609712004,794.79,0.00013698,2]
[334852250,1723609712032,6567.88,0.00013698,2]
[334852251,1723609712202,1821.67,0.00013698,2]
[334852252,1723609712341,6567.88,0.00013972,2]
[334852253,1723609712403,794.79,0.00013972,2]
[334852254,1723609712770,1821.67,0.00013972,2]
[334852255,1723609714726,958.01,0.00013698,2]
[334852256,1723609714861,1300.27,0.00013698,2]
[334852257,1723609714994,958.01,0.00013972,2]
[334852258,1723609715139,1300.27,0.00013972,2]
[334852259,1723609715323,1529.8,0.00013698,2]
[334852260,1723609715504,500.0,0.00013698,2]
[334852261,1723609715597,1529.8,0.00013972,2]
[334852262,1723609715737,500.0,0.00013972,2]
[334852263,1723609716556,500.0,0.00013698,2]
[334852264,1723609716799,500.0,0.00013972,2]
[334852265,1723609717801,7894.91,0.00013698,2]
[334852266,1723609718199,7894.91,0.00013972,2]
[334852267,1723609719668,962.46,0.00013698,2]
[334852268,1723609719831,962.46,0.00013972,2]
[334852269,1723609720320,500.0,0.00013698,2]
[334852270,1723609720352,784.56,0.00013698,2]
[334852271,1723609720569,500.0,0.00013972,2]
[334852272,1723609720605,784.56,0.00013972,2]
[334852273,1723609721273,2122.48,0.00013698,2]
[334852274,1723609721311,500.0,0.00013698,2]
[334852275,1723609721564,500.0,0.00013972,2]
[334852276,1723609721602,1436.52,0.00013698,2]
[334852277,1723609721685,2122.48,0.00013972,2]
[334852279,1723609723236,1436.52,0.00013972,2]
[334852280,1723609723751,602.19,0.00013698,2]
[334852281,1723609724080,602.19,0.00013972,2]
[334852282,1723609725265,500.0,0.00013698,2]
[334852283,1723609725567,500.0,0.00013972,2]
[334852284,1723609729290,2443.79,0.00013698,2]
[334852285,1723609729566,816.41519187,0.00013698,2]
[334852286,1723609729601,2443.79,0.00013972,2]
[334852287,1723609730741,500.0,0.00013698,2]
[334852288,1723609730997,500.0,0.00013972,2]
[334852289,1723609731373,1117.72,0.00013698,2]
[334852290,1723609731629,1117.72,0.00013972,2]
[334852291,1723609731786,1141.56,0.00013698,2]
[334852292,1723609731825,1038.02,0.00013698,2]
[334852293,1723609732029,1141.56,0.00013972,2]
[334852294,1723609732083,1038.02,0.00013972,2]
[334852295,1723609732210,500.0,0.00013698,2]
[334852296,1723609732469,500.0,0.00013972,2]
[334852297,1723609733075,2826.18,0.00013698,2]
[334852298,1723609733326,2826.18,0.00013972,2]
[334852299,1723609733504,988.5,0.00013698,2]
[334852300,1723609733788,988.5,0.00013972,2]
[334852301,1723609735707,626.15,0.00013698,2]
[334852302,1723609735990,626.15,0.00013972,2]
[334852303,1723609739050,1794.03,0.00013698,2]
[334852304,1723609739303,1794.03,0.00013972,2]
[334852305,1723609740087,1000.31,0.00013698,2]
[334852306,1723609740683,1000.31,0.00013972,2]
[334852307,1723609741379,789.7,0.00013698,2]
[334852308,1723609741648,789.7,0.00013972,2]
[334852309,1723609742868,500.0,0.00013698,2]
[334852310,1723609743019,1287.7,0.00013698,2]
[334852311,1723609743297,1287.7,0.00013972,2]
[334852312,1723609743491,500.0,0.00013972,2]
[334852313,1723609743593,500.0,0.00013698,2]
[334852314,1723609743796,500.0,0.00013972,2]
[334852315,1723609744015,301.85,0.00011826,2]
[334852316,1723609744113,542.16,0.00013698,2]
[334852317,1723609744251,8000.0,0.000135,2]
[334852318,1723609744390,542.16,0.00013972,2]
[334852319,1723609745231,824.39,0.00013698,2]
[334852320,1723609745655,824.39,0.00013972,2]
[334852321,1723609747006,500.0,0.00013698,2]
[334852322,1723609747304,500.0,0.00013972,2]
[334852323,1723609747808,500.0,0.00013698,2]
[334852324,1723609748067,521.30248523,0.00013698,2]
[334852325,1723609748110,500.0,0.00013972,2]
[334852326,1723609750492,500.0,0.00013698,2]
[334852327,1723609751201,500.0,0.00013972,2]
[334852328,1723609751435,500.0,0.00013698,2]
[334852329,1723609751491,500.0,0.00013698,2]
[334852330,1723609751537,500.0,0.00013972,2]
[334852331,1723609751598,500.0,0.00013972,2]
[334852332,1723609752375,1448.79,0.00013698,2]
[334852333,1723609752688,1448.79,0.00013972,2]
[334852334,1723609752720,500.0,0.00013698,2]
[334852335,1723609752969,500.0,0.00013972,2]
[334852336,1723609753526,500.0,0.00013698,2]
[334852337,1723609753770,500.0,0.00013972,2]
[334852338,1723609755162,650.93,0.00013698,2]
[334852339,1723609755372,1750.64,0.00013698,2]
[334852340,1723609755409,650.93,0.00013972,2]
[334852341,1723609755696,1750.64,0.00013972,2]
[334852342,1723609756088,1144.6,0.00013698,2]
[334852343,1723609756354,1144.6,0.00013972,2]
[334852344,1723609756483,500.0,0.00013698,2]
[334852345,1723609756743,500.0,0.00013972,2]
[334852346,1723609756789,500.0,0.00013698,2]
[334852347,1723609756979,500.0,0.00013698,2]
[334852348,1723609757043,500.0,0.00013972,2]
[334852349,1723609757142,500.0,0.00013972,2]
[334852350,1723609758038,500.0,0.00013698,2]
[334852351,1723609758438,500.0,0.00013972,2]
[334852352,1723609759349,500.0,0.00013698,2]
[334852353,1723609759639,504.09116812,0.00013972,2]
[334852354,1723609761595,12775.62,0.00013698,2]
[334852355,1723609761740,12775.62,0.00013972,2]
[334852356,1723609762121,500.0,0.00013698,2]
[334852357,1723609762398,500.0,0.00013972,2]
[334852358,1723609763615,3428.13,0.00013698,2]
[334852359,1723609763884,3428.13,0.00013972,2]
[334852360,1723609764045,1230.28,0.00013698,2]
[334852361,1723609764680,1230.28,0.00013972,2]
[334852362,1723609764741,500.0,0.00013698,2]
[334852363,1723609764808,500.0,0.00013972,2]
[334852364,1723609765074,500.0,0.00013698,2]
[334852365,1723609765351,500.0,0.00013972,2]
[334852366,1723609765396,1638.12,0.00013698,2]
[334852367,1723609765657,1638.12,0.00013972,2]
[334852368,1723609765744,500.0,0.00013698,2]
[334852369,1723609765781,500.0,0.00013698,2]
[334852370,1723609766030,500.0,0.00013972,2]
[334852371,1723609766068,500.0,0.00013972,2]
[334852372,1723609766253,500.0,0.00013698,2]
[334852373,1723609766290,500.0,0.00013698,2]
[334852374,1723609766539,500.0,0.00013972,2]
[334852375,1723609766582,500.0,0.00013972,2]
[334852376,1723609767448,500.0,0.00013698,2]
[334852377,1723609767711,538.3476762,0.00013972,2]
[334852378,1723609767918,2040.24,0.00013698,2]
[334852379,1723609768096,2040.24,0.00013972,2]
[334852380,1723609768467,1515.13,0.00013698,2]
[334852381,1723609768670,1515.13,0.00013972,2]
[334852382,1723609770364,683.16,0.00013698,2]
[334852383,1723609770518,683.16,0.00013972,2]
[334852384,1723609770775,1072.71,0.00013698,2]
[334852385,1723609771037,1072.71,0.00013972,2]
[334852386,1723609772041,3552.15,0.00013698,2]
[334852387,1723609772192,3552.15,0.00013972,2]
[334852388,1723609772327,1939.38,0.00013698,2]
[334852389,1723609772421,500.0,0.00013698,2]
[334852390,1723609772647,1939.38,0.00013972,2]
[334852391,1723609772679,500.0,0.00013698,2]
[334852392,1723609772731,500.0,0.00013972,2]
[334852393,1723609772878,500.0,0.00013972,2]
[334852394,1723609773112,567.28,0.00013698,2]
[334852395,1723609773272,502.4281511,0.00013698,2]
[334852396,1723609773385,567.28,0.00013972,2]
[334852397,1723609775205,500.0,0.00013698,2]
[334852398,1723609775469,502.92311665,0.00013972,2]
[334852399,1723609776669,1452.68,0.00013698,2]
[334852400,1723609776920,1452.68,0.00013972,2]
[334852401,1723609777943,500.0,0.00013698,2]
[334852402,1723609778194,500.0,0.00013972,2]
[334852403,1723609779354,500.0,0.00013698,2]
[334852404,1723609779646,500.0,0.00013972,2]
[334852405,1723609780533,500.0,0.00013698,2]
[334852406,1723609780712,5000.0,0.000139,2]
[334852407,1723609780753,1066.26,0.00013698,2]
[334852408,1723609780788,500.0,0.00013972,2]
[334852409,1723609781035,1066.26,0.00013972,2]
[334852410,1723609781143,500.0,0.00013698,2]
[334852411,1723609781403,500.0,0.00013972,2]
[334852412,1723609783500,2040.77,0.00013698,2]
[334852413,1723609783607,2040.77,0.00013972,2]
[334852414,1723609784048,524.59,0.00013698,2]
[334852415,1723609784294,524.59,0.00013972,2]
[334852416,1723609785541,500.0,0.00013698,2]
[334852417,1723609785812,500.0,0.00013972,2]
[334852418,1723609787045,500.0,0.00013698,2]
[334852419,1723609787333,500.0,0.00013972,2]
[334852420,1723609788984,751.22,0.00013698,2]
[334852421,1723609789044,751.22,0.00013972,2]
[334852422,1723609789084,500.0,0.00013698,2]
[334852423,1723609789312,500.0,0.00013972,2]
[334852424,1723609789505,500.0,0.00013698,2]
[334852425,1723609789577,500.0,0.00013698,2]
[334852426,1723609789858,500.0,0.00013972,2]
[334852427,1723609790203,500.0,0.00013972,2]
[334852428,1723609790877,1978.27,0.00013698,2]
[334852429,1723609791154,1978.27,0.00013972,2]
[334852430,1723609791878,1013.74,0.00013698,2]
[334852431,1723609792128,1013.74,0.00013972,2]
[334852432,1723609792581,500.0,0.00013698,2]
[334852433,1723609792858,500.0,0.00013972,2]
[334852434,1723609792903,500.0,0.00013698,2]
[334852435,1723609793167,500.0,0.00013972,2]
[334852436,1723609794064,3363.31,0.00013698,2]
[334852437,1723609794139,3363.31,0.00013972,2]
[334852438,1723609796602,547.18,0.00013698,2]
[334852439,1723609797008,547.18,0.00013972,2]
[334852440,1723609798841,500.0,0.00013698,2]
[334852441,1723609799121,500.0,0.00013972,2]
[334852442,1723609799684,500.0,0.00013698,2]
[334852443,1723609799876,500.0,0.00013698,2]
[334852444,1723609799997,500.0,0.00013972,2]
[334852445,1723609800058,3032.15,0.00013698,2]
[334852446,1723609800127,500.0,0.00013972,2]
[334852447,1723609800334,3032.15,0.00013972,2]
[334852448,1723609800571,500.0,0.00013698,2]
[334852449,1723609800795,500.0,0.00013972,2]
[334852450,1723609801014,8625.96,0.00013698,2]
[334852451,1723609801262,1762.22,0.00013698,2]
[334852452,1723609801293,8625.96,0.00013972,2]